[Event "Ruzomberok Closed 2020 - 3. turnaj"]
[Site "Ruzomberok, Slovakia"]
[Date "2020.09.05"]
[Round "1.1"]
[White "Konkol, Emil"]
[Black "Grib, Stefan"]
[Result "1-0"]
[TimeControl "10m + 5s"]
[WhiteElo "1799"]
[BlackElo "1429"]

1. e4 {[%clk 00:10:08]} {[%emt 00:00:02]} d5 {[%clk 00:10:09]} {[%emt
00:00:02]} 2. exd5 {[%clk 00:10:10]} {[%emt 00:00:03]} Qxd5 {[%clk 00:10:12]}
{[%emt 00:00:02]} 3. Nc3 {[%clk 00:10:13]} {[%emt 00:00:02]} Qa5 {[%clk
00:10:16]} {[%emt 00:00:02]} 4. Bb5+ {[%clk 00:10:04]} {[%emt 00:00:13]} c6
{[%clk 00:10:18]} {[%emt 00:00:03]} 5. Be2 {[%clk 00:10:07]} {[%emt 00:00:01]}
Nf6 {[%clk 00:10:20]} {[%emt 00:00:04]} 6. Nf3 {[%clk 00:10:10]} {[%emt
00:00:02]} Bf5 {[%clk 00:10:18]} {[%emt 00:00:07]} 7. O-O {[%clk 00:10:07]}
{[%emt 00:00:08]} e6 {[%clk 00:10:21]} {[%emt 00:00:03]} 8. a3 {[%clk
00:10:10]} {[%emt 00:00:02]} Bd6 {[%clk 00:10:23]} {[%emt 00:00:02]} 9. Nd4
{[%clk 00:10:07]} {[%emt 00:00:06]} Bg6 {[%clk 00:10:20]} {[%emt 00:00:09]} 10.
d3 {[%clk 00:09:55]} {[%emt 00:00:18]} O-O {[%clk 00:10:20]} {[%emt 00:00:05]}
11. Bd2 {[%clk 00:09:54]} {[%emt 00:00:05]} Qc7 {[%clk 00:10:22]} {[%emt
00:00:04]} 12. Nf3 {[%clk 00:09:56]} {[%emt 00:00:03]} Nbd7 {[%clk 00:10:16]}
{[%emt 00:00:11]} 13. Ne4 {[%clk 00:09:58]} {[%emt 00:00:02]} Nxe4 {[%clk
00:09:55]} {[%emt 00:00:26]} 14. dxe4 {[%clk 00:10:01]} {[%emt 00:00:02]} Bxe4
{[%clk 00:09:55]} {[%emt 00:00:05]} 15. Bd3 {[%clk 00:10:04]} Bxd3 {[%clk
00:09:45]} {[%emt 00:00:17]} 16. cxd3 {[%clk 00:10:07]} {[%emt 00:00:02]} Nf6
{[%clk 00:09:35]} {[%emt 00:00:16]} 17. Bc3 {[%clk 00:10:08]} {[%emt 00:00:04]}
Nd5 {[%clk 00:09:05]} {[%emt 00:00:36]} 18. d4 {[%clk 00:09:42]} {[%emt
00:00:30]} h6 {[%clk 00:08:31]} {[%emt 00:00:39]} 19. Re1 {[%clk 00:09:38]}
{[%emt 00:00:08]} Rfe8 {[%clk 00:08:15]} {[%emt 00:00:22]} 20. Qc2 {[%clk
00:09:38]} {[%emt 00:00:05]} Nxc3 {[%clk 00:07:44]} {[%emt 00:00:36]} 21. bxc3
{[%clk 00:09:38]} {[%emt 00:00:04]} b5 {[%clk 00:07:39]} {[%emt 00:00:11]} 22.
a4 {[%clk 00:09:39]} {[%emt 00:00:04]} a6 {[%clk 00:07:41]} {[%emt 00:00:03]}
23. axb5 {[%clk 00:09:37]} {[%emt 00:00:07]} axb5 {[%clk 00:07:42]} {[%emt
00:00:05]} 24. c4 {[%clk 00:09:28]} {[%emt 00:00:13]} Rec8 {[%clk 00:07:15]}
{[%emt 00:00:32]} 25. cxb5 {[%clk 00:09:20]} {[%emt 00:00:13]} Rxa1 {[%clk
00:06:09]} {[%emt 00:01:10]} 26. Rxa1 {[%clk 00:09:23]} {[%emt 00:00:03]} cxb5
{[%clk 00:06:11]} {[%emt 00:00:03]} 27. Qxc7 {[%clk 00:08:06]} {[%emt
00:01:22]} Bxc7 {[%clk 00:05:38]} {[%emt 00:00:39]} 28. Rb1 {[%clk 00:07:59]}
{[%emt 00:00:12]} Rb8 {[%clk 00:05:39]} {[%emt 00:00:05]} 29. Ne1 {[%clk
00:07:52]} {[%emt 00:00:10]} b4 {[%clk 00:05:29]} {[%emt 00:00:15]} 30. Rb3
{[%clk 00:07:48]} {[%emt 00:00:09]} Kf8 {[%clk 00:05:18]} {[%emt 00:00:16]} 31.
Nd3 {[%clk 00:07:46]} {[%emt 00:00:05]} Bd6 {[%clk 00:05:18]} {[%emt 00:00:07]}
32. f3 {[%clk 00:07:40]} {[%emt 00:00:11]} Ke7 {[%clk 00:05:21]} {[%emt
00:00:03]} 33. Kf2 {[%clk 00:07:43]} {[%emt 00:00:01]} f6 {[%clk 00:05:18]}
{[%emt 00:00:08]} 34. Ke2 {[%clk 00:07:44]} {[%emt 00:00:02]} e5 {[%clk
00:05:17]} {[%emt 00:00:07]} 35. dxe5 {[%clk 00:07:37]} {[%emt 00:00:12]} fxe5
{[%clk 00:05:19]} {[%emt 00:00:03]} 36. Ke3 {[%clk 00:07:34]} {[%emt 00:00:08]}
Ke6 {[%clk 00:05:12]} {[%emt 00:00:13]} 37. Ke4 {[%clk 00:07:37]} {[%emt
00:00:02]} Ra8 {[%clk 00:04:29]} {[%emt 00:00:49]} 38. g3 {[%emt 00:00:49]} Ra3
{[%clk 00:04:23]} 39. Nc1 {[%clk 00:06:56]} {[%emt 00:00:12]} Rxb3 {[%clk
00:03:20]} {[%emt 00:01:09]} 40. Nxb3 {[%clk 00:06:59]} {[%emt 00:00:02]} g5
{[%clk 00:03:14]} {[%emt 00:00:11]} 41. Na5 {[%clk 00:06:48]} {[%emt 00:00:16]}
Bc7 {[%clk 00:02:24]} {[%emt 00:00:55]} 42. Nb3 {[%clk 00:06:42]} {[%emt
00:00:10]} Bd6 {[%clk 00:02:20]} {[%emt 00:00:10]} 43. Nc1 {[%clk 00:06:22]}
{[%emt 00:00:24]} Bc7 {[%clk 00:02:10]} {[%emt 00:00:16]} 44. h3 {[%clk
00:05:50]} {[%emt 00:00:37]} Bd6 {[%clk 00:01:34]} {[%emt 00:00:40]} 45. Nb3
{[%clk 00:05:41]} {[%emt 00:00:13]} Be7 {[%clk 00:01:27]} {[%emt 00:00:13]} 46.
Na5 {[%clk 00:05:11]} {[%emt 00:00:35]} Bc5 {[%clk 00:01:12]} {[%emt 00:00:20]}
47. f4 {[%clk 00:04:57]} {[%emt 00:00:19]} Bd4 {[%clk 00:00:37]} {[%emt
00:00:40]} 48. f5+ {[%clk 00:04:52]} {[%emt 00:00:10]} Kf6 {[%clk 00:00:34]}
{[%emt 00:00:08]} 49. g4 {[%clk 00:04:51]} {[%emt 00:00:06]} Bc3 {[%clk
00:00:31]} {[%emt 00:00:08]} 50. Kd5 {[%clk 00:04:44]} {[%emt 00:00:10]} h5
{[%clk 00:00:31]} {[%emt 00:00:07]} 51. Nb3 {[%clk 00:04:17]} {[%emt 00:00:31]}
hxg4 {[%clk 00:00:30]} {[%emt 00:00:06]} 52. hxg4 {[%clk 00:04:21]} {[%emt
00:00:02]} Bb2 {[%clk 00:00:25]} {[%emt 00:00:11]} 53. Nc5 {[%clk 00:04:07]}
{[%emt 00:00:18]} Bc3 {[%clk 00:00:25]} {[%emt 00:00:05]} 54. Ne4+ {[%clk
00:03:54]} {[%emt 00:00:17]} Ke7 {[%clk 00:00:19]} {[%emt 00:00:13]} 55. Kc4
{[%clk 00:03:40]} {[%emt 00:00:19]} Be1 {[%clk 00:00:11]} {[%emt 00:00:12]} 56.
Nxg5 {[%clk 00:03:40]} {[%emt 00:00:05]} Kf6 {[%clk 00:00:11]} {[%emt
00:00:05]} 57. Ne4+ {[%clk 00:03:41]} {[%emt 00:00:03]} Kf7 {[%clk 00:00:10]}
{[%emt 00:00:07]} 58. g5 {[%clk 00:03:43]} {[%emt 00:00:03]} Bh4 {[%clk
00:00:12]} {[%emt 00:00:03]} 59. g6+ {[%clk 00:03:42]} {[%emt 00:00:05]} Kg7
{[%clk 00:00:14]} {[%emt 00:00:03]} 60. Kxb4 {[%clk 00:03:45]} {[%emt
00:00:03]} Be7+ {[%clk 00:00:11]} {[%emt 00:00:08]} 61. Kc4 {[%clk 00:03:47]}
{[%emt 00:00:02]} Bd8 {[%clk 00:00:14]} {[%emt 00:00:03]} 62. Kd5 {[%clk
00:03:49]} {[%emt 00:00:03]} Bc7 {[%clk 00:00:16]} {[%emt 00:00:04]} 63. Ke6
{[%clk 00:03:50]} {[%emt 00:00:03]} Bb8 {[%clk 00:00:09]} {[%emt 00:00:13]} 64.
Ke7 {[%clk 00:03:45]} {[%emt 00:00:08]} Ba7 {[%clk 00:00:11]} {[%emt 00:00:05]}
65. Ke6 {[%clk 00:03:42]} {[%emt 00:00:08]} Bb6 {[%clk 00:00:13]} {[%emt
00:00:04]} 66. Kd5 {[%clk 00:03:44]} {[%emt 00:00:02]} Bd4 {[%clk 00:00:06]}
{[%emt 00:00:12]} 67. Ke6 {[%clk 00:03:43]} {[%emt 00:00:05]} Bb2 {[%clk
00:00:10]} {[%emt 00:00:02]} 68. Kd5 {[%clk 00:03:22]} {[%emt 00:00:25]} Ba1
{[%clk 00:00:09]} {[%emt 00:00:06]} 69. Nd6 {[%clk 00:03:22]} {[%emt 00:00:05]}
Bb2 {[%clk 00:00:07]} {[%emt 00:00:08]} 70. Ke4 {[%clk 00:03:25]} {[%emt
00:00:01]} Kf6 {[%clk 00:00:07]} {[%emt 00:00:06]} 71. Ne8+ {[%clk 00:03:27]}
{[%emt 00:00:03]} Ke7 {[%clk 00:00:00]} {[%emt 00:00:07]} 1-0

[Event "Ruzomberok Closed 2020 - 3. turnaj"]
[Site "Ruzomberok, Slovakia"]
[Date "2020.09.05"]
[Round "1.3"]
[White "Holly, Andrej"]
[Black "Ciglian, Michal"]
[Result "1-0"]
[TimeControl "10m + 5s"]
[WhiteElo "1714"]
[BlackElo "1388"]

1. c4 {[%clk 00:10:09]} e5 {[%clk 00:10:09]} {[%emt 00:00:02]} 2. g3 {[%clk
00:10:12]} {[%emt 00:00:01]} Nc6 {[%clk 00:10:11]} {[%emt 00:00:03]} 3. Bg2
{[%clk 00:10:15]} {[%emt 00:00:01]} Nf6 {[%clk 00:10:14]} {[%emt 00:00:03]} 4.
Nc3 {[%clk 00:10:09]} {[%emt 00:00:11]} b6 {[%clk 00:10:15]} {[%emt 00:00:04]}
5. Nf3 {[%clk 00:09:50]} {[%emt 00:00:24]} d6 {[%clk 00:10:05]} {[%emt
00:00:15]} 6. Nxe5 {[%clk 00:08:59]} {[%emt 00:00:56]} Nxe5 {[%clk 00:10:08]}
{[%emt 00:00:02]} 7. Bxa8 {[%clk 00:09:03]} {[%emt 00:00:02]} Bh3 {[%clk
00:09:55]} {[%emt 00:00:18]} 8. Bf3 {[%clk 00:07:46]} {[%emt 00:01:22]} Qe7
{[%clk 00:09:31]} {[%emt 00:00:28]} 9. e3 {[%clk 00:06:14]} {[%emt 00:01:37]}
Nxc4 {[%clk 00:09:24]} {[%emt 00:00:12]} 10. Qa4+ {[%clk 00:06:04]} {[%emt
00:00:15]} Bd7 {[%clk 00:09:11]} {[%emt 00:00:18]} 11. Qxc4 {[%clk 00:06:04]}
{[%emt 00:00:06]} g6 {[%clk 00:09:09]} {[%emt 00:00:06]} 12. O-O {[%clk
00:05:46]} {[%emt 00:00:23]} Bg7 {[%clk 00:09:11]} {[%emt 00:00:03]} 13. d4
{[%clk 00:05:41]} {[%emt 00:00:10]} h5 {[%clk 00:08:01]} {[%emt 00:01:14]} 14.
Qxc7 {[%clk 00:05:30]} {[%emt 00:00:16]} O-O {[%clk 00:07:31]} {[%emt
00:00:35]} 15. Bd2 {[%clk 00:05:09]} {[%emt 00:00:26]} Rc8 {[%clk 00:07:05]}
{[%emt 00:00:31]} 16. Qxa7 {[%clk 00:05:09]} {[%emt 00:00:06]} Qd8 {[%clk
00:06:51]} {[%emt 00:00:18]} 17. Rac1 {[%clk 00:04:48]} {[%emt 00:00:26]} Bg4
{[%clk 00:06:41]} {[%emt 00:00:15]} 18. Bg2 {[%clk 00:04:31]} {[%emt 00:00:21]}
d5 {[%clk 00:06:26]} {[%emt 00:00:21]} 19. Nxd5 {[%clk 00:04:19]} {[%emt
00:00:17]} Rxc1 {[%clk 00:06:11]} {[%emt 00:00:20]} 20. Nxf6+ {[%clk 00:04:20]}
{[%emt 00:00:04]} Qxf6 {[%clk 00:06:13]} {[%emt 00:00:02]} 21. Rxc1 {[%clk
00:04:16]} {[%emt 00:00:09]} Kh7 {[%clk 00:05:53]} {[%emt 00:00:25]} 22. Rc7
{[%clk 00:04:00]} {[%emt 00:00:22]} Qg5 {[%clk 00:04:47]} {[%emt 00:01:10]} 23.
Rxf7 {[%clk 00:03:53]} {[%emt 00:00:12]} Qh6 {[%clk 00:04:50]} {[%emt
00:00:02]} 24. e4 {[%clk 00:03:36]} {[%emt 00:00:23]} Qxd2 {[%clk 00:04:38]}
{[%emt 00:00:17]} 25. Rxg7+ {[%clk 00:03:38]} {[%emt 00:00:02]} Kh6 {[%clk
00:04:35]} {[%emt 00:00:07]} 26. Rh7+ {[%clk 00:03:27]} {[%emt 00:00:17]} Kg5
{[%clk 00:04:37]} {[%emt 00:00:03]} 27. Qe7# {[%clk 00:03:23]} {[%emt
00:00:03]} 1-0

[Event "Ruzomberok Closed 2020 - 3. turnaj"]
[Site "Ruzomberok, Slovakia"]
[Date "2020.09.05"]
[Round "1.4"]
[White "Sustek, Adam"]
[Black "Demko, Ladislav"]
[Result "1/2-1/2"]
[TimeControl "10m + 5s"]
[WhiteElo "1377"]
[BlackElo "1701"]

1. e4 {[%clk 00:10:07]} {[%emt 00:00:02]} c5 {[%clk 00:10:08]} {[%emt
00:00:02]} 2. c3 {[%clk 00:10:11]} {[%emt 00:00:01]} e6 {[%clk 00:10:05]}
{[%emt 00:00:09]} 3. d4 {[%clk 00:10:14]} {[%emt 00:00:02]} cxd4 {[%clk
00:10:06]} {[%emt 00:00:04]} 4. cxd4 {[%clk 00:10:17]} {[%emt 00:00:02]} Nc6
{[%clk 00:10:06]} {[%emt 00:00:06]} 5. Nf3 {[%clk 00:10:18]} {[%emt 00:00:03]}
Nf6 {[%clk 00:10:03]} {[%emt 00:00:08]} 6. Bd3 {[%clk 00:10:08]} {[%emt
00:00:15]} Be7 {[%clk 00:10:00]} {[%emt 00:00:07]} 7. Nc3 {[%clk 00:10:08]}
{[%emt 00:00:05]} O-O {[%clk 00:09:54]} {[%emt 00:00:11]} 8. Bd2 {[%clk
00:09:29]} {[%emt 00:00:44]} d5 {[%clk 00:09:53]} {[%emt 00:00:07]} 9. e5
{[%clk 00:09:20]} {[%emt 00:00:14]} Nd7 {[%clk 00:09:32]} {[%emt 00:00:26]} 10.
Rc1 {[%clk 00:09:17]} {[%emt 00:00:09]} f6 {[%clk 00:09:26]} {[%emt 00:00:11]}
11. exf6 {[%clk 00:08:28]} {[%emt 00:00:54]} Bxf6 {[%clk 00:09:19]} {[%emt
00:00:12]} 12. Ne2 {[%clk 00:08:19]} {[%emt 00:00:14]} e5 {[%clk 00:09:02]}
{[%emt 00:00:23]} 13. dxe5 {[%clk 00:07:47]} {[%emt 00:00:37]} Ncxe5 {[%clk
00:08:55]} {[%emt 00:00:12]} 14. Nxe5 {[%clk 00:06:41]} {[%emt 00:01:10]} Nxe5
{[%clk 00:08:56]} {[%emt 00:00:04]} 15. Bb1 {[%clk 00:05:06]} {[%emt 00:01:41]}
Nc4 {[%clk 00:08:47]} {[%emt 00:00:13]} 16. b3 {[%clk 00:04:31]} {[%emt
00:00:41]} Nxd2 {[%clk 00:08:04]} {[%emt 00:00:48]} 17. Qxd2 {[%clk 00:04:33]}
{[%emt 00:00:03]} Be6 {[%clk 00:07:56]} {[%emt 00:00:14]} 18. O-O {[%clk
00:04:14]} {[%emt 00:00:23]} Rc8 {[%clk 00:07:33]} {[%emt 00:00:28]} 19. Rxc8
{[%clk 00:03:18]} {[%emt 00:01:02]} Qxc8 {[%clk 00:07:23]} {[%emt 00:00:15]} 20.
Rc1 {[%clk 00:03:03]} {[%emt 00:00:19]} Qd7 {[%clk 00:07:17]} {[%emt 00:00:12]}
21. Nd4 {[%clk 00:02:54]} {[%emt 00:00:14]} Bf7 {[%clk 00:06:39]} {[%emt
00:00:43]} 22. h3 {[%clk 00:02:43]} {[%emt 00:00:16]} h6 {[%clk 00:05:31]}
{[%emt 00:01:12]} 23. Bf5 {[%clk 00:01:36]} {[%emt 00:01:12]} Qd8 {[%clk
00:05:12]} {[%emt 00:00:25]} 24. Ne6 {[%clk 00:01:31]} {[%emt 00:00:10]} Bxe6
{[%clk 00:04:49]} {[%emt 00:00:28]} 25. Bxe6+ {[%clk 00:01:34]} {[%emt
00:00:02]} Kh8 {[%clk 00:04:49]} {[%emt 00:00:05]} 26. Rc8 {[%clk 00:01:19]}
{[%emt 00:00:20]} Qe7 {[%clk 00:04:24]} {[%emt 00:00:30]} 27. Rxf8+ {[%clk
00:01:22]} {[%emt 00:00:02]} Qxf8 {[%clk 00:04:12]} {[%emt 00:00:08]} 28. Qxd5
{[%clk 00:01:25]} {[%emt 00:00:11]} b6 {[%clk 00:03:58]} {[%emt 00:00:19]} 29.
Qb7 {[%clk 00:01:10]} {[%emt 00:00:19]} Qc5 {[%clk 00:03:46]} {[%emt 00:00:16]}
30. Qb8+ {[%clk 00:01:03]} {[%emt 00:00:15]} Kh7 {[%clk 00:03:33]} {[%emt
00:00:15]} 31. Qg8+ {[%clk 00:00:51]} {[%emt 00:00:19]} Kg6 {[%clk 00:03:33]}
{[%emt 00:00:04]} 32. Qf7+ {[%clk 00:00:54]} {[%emt 00:00:03]} Kh7 {[%clk
00:03:25]} {[%emt 00:00:13]} 33. Qg8+ {[%clk 00:00:58]} {[%emt 00:00:01]} Kg6
{[%clk 00:03:26]} {[%emt 00:00:05]} 34. Bc4 {[%clk 00:00:42]} {[%emt 00:00:21]}
Qe5 {[%clk 00:02:30]} {[%emt 00:01:01]} 35. Qf7+ {[%clk 00:00:18]} {[%emt
00:00:28]} Kg5 {[%clk 00:02:20]} {[%emt 00:00:15]} 36. Qxa7 {[%clk 00:00:19]}
{[%emt 00:00:05]} Qe1+ {[%clk 00:02:15]} {[%emt 00:00:10]} 37. Kh2 {[%clk
00:00:23]} {[%emt 00:00:01]} Qxf2 {[%clk 00:02:17]} {[%emt 00:00:03]} 38. Qc7
{[%clk 00:00:22]} {[%emt 00:00:07]} h5 {[%clk 00:01:50]} {[%emt 00:00:32]} 39.
Qg3+ {[%clk 00:00:24]} {[%emt 00:00:03]} Qxg3+ {[%clk 00:01:48]} {[%emt
00:00:07]} 40. Kxg3 {[%emt 00:00:09]} Be5+ {[%clk 00:01:28]} {[%emt 00:00:17]}
41. Kf3 {[%clk 00:00:31]} {[%emt 00:00:01]} h4 {[%clk 00:01:27]} {[%emt
00:00:07]} 42. Ke4 {[%clk 00:00:24]} {[%emt 00:00:11]} Bd6 {[%clk 00:01:24]}
{[%emt 00:00:08]} 43. a4 {[%clk 00:00:22]} {[%emt 00:00:08]} Kf6 {[%clk
00:01:19]} {[%emt 00:00:10]} 44. Kd5 {[%clk 00:00:21]} {[%emt 00:00:06]} Ke7
{[%clk 00:01:07]} {[%emt 00:00:16]} 45. Kc6 {[%clk 00:00:23]} {[%emt 00:00:03]}
Bc7 {[%clk 00:00:57]} {[%emt 00:00:14]} 46. b4 {[%clk 00:00:20]} {[%emt
00:00:09]} Bd8 {[%clk 00:00:59]} {[%emt 00:00:02]} 47. Kb5 {[%clk 00:00:21]}
{[%emt 00:00:04]} Kd6 {[%clk 00:01:00]} {[%emt 00:00:04]} 48. a5 {[%clk
00:00:23]} {[%emt 00:00:04]} bxa5 {[%clk 00:01:01]} {[%emt 00:00:04]} 49. bxa5
{[%clk 00:00:26]} {[%emt 00:00:01]} Kc7 {[%clk 00:01:05]} {[%emt 00:00:01]} 50.
a6 {[%clk 00:00:25]} {[%emt 00:00:06]} Kb8 {[%clk 00:01:03]} {[%emt 00:00:06]}
51. Kc6 {[%clk 00:00:28]} {[%emt 00:00:02]} Ka7 {[%clk 00:01:04]} {[%emt
00:00:05]} 52. Kd7 {[%clk 00:00:30]} {[%emt 00:00:03]} Bb6 {[%clk 00:00:58]}
{[%emt 00:00:11]} 53. Ke6 {[%clk 00:00:31]} {[%emt 00:00:04]} Be3 {[%clk
00:00:57]} {[%emt 00:00:05]} 54. Kf5 {[%clk 00:00:30]} {[%emt 00:00:07]} g5
{[%clk 00:01:00]} {[%emt 00:00:02]} 55. Ke4 {[%clk 00:00:30]} {[%emt 00:00:05]}
Bf4 {[%clk 00:01:02]} {[%emt 00:00:02]} 56. Kf3 {[%clk 00:00:30]} {[%emt
00:00:05]} Kb6 {[%clk 00:01:04]} {[%emt 00:00:03]} 57. Kg4 {[%clk 00:00:23]}
{[%emt 00:00:12]} Be3 {[%clk 00:01:02]} {[%emt 00:00:07]} 58. Kf3 {[%emt
00:00:13]} 1/2-1/2